fUST/lending_fUST_20240915
["ID","MTS","AMOUNT","RATE_DAILY","PERIOD"]
[338228266,1726396248566,-2722.7,0.00027671,5]
[338228267,1726396248579,-895.87,0.00027671,5]
[338228268,1726396248588,-500.0,0.00027671,5]
[338228269,1726396248598,-542.8,0.00027671,5]
[338228270,1726396248607,-504.55587603,0.00027671,5]
[338228271,1726396248619,-568.88,0.00027671,5]
[338228272,1726396248628,-500.0,0.00027671,5]
[338228273,1726396248638,-777.49,0.00027671,5]
[338228274,1726396248648,-1351.98,0.00027671,5]
[338228275,1726396248657,-500.0,0.00027671,5]
[338228276,1726396248666,-500.0,0.00027671,5]
[338228277,1726396248681,-789.13,0.00027671,5]
[338228278,1726396248691,-500.0,0.00027671,5]
[338228279,1726396248700,-500.0,0.00027671,5]
[338228280,1726396248709,-505.57375706,0.00027671,5]
[338228281,1726396248718,-500.0,0.00027671,5]
[338228282,1726396248727,-527.66,0.00027671,5]
[338228283,1726396248736,-500.0,0.00027671,5]
[338228284,1726396248745,-500.0,0.00027671,5]
[338228285,1726396248755,-1054.51,0.00027671,5]
[338228286,1726396248764,-500.0,0.00027671,2]
[338228287,1726396248774,-500.0,0.00027671,5]
[338228288,1726396248785,-645.42545253,0.00027671,2]
[338228289,1726396248795,-3508.34,0.00027671,5]
[338228290,1726396248805,-500.0,0.00027671,5]
[338228291,1726396248814,-957.4,0.00027671,5]
[338228292,1726396248823,-500.0,0.00027671,5]
[338228293,1726396248834,-500.0,0.00027671,5]
[338228294,1726396248844,-500.0,0.00027671,5]
[338228295,1726396248856,-1031.75,0.00027671,5]
[338228296,1726396248866,-500.0,0.00027671,5]
[338228297,1726396248876,-500.0,0.00027671,5]
[338228298,1726396248886,-500.0,0.00027671,5]
[338228299,1726396248896,-1206.13,0.00027671,5]
[338228300,1726396248905,-522.11412404,0.00027671,5]
[338228301,1726396248915,-500.0,0.00027671,5]
[338228302,1726396248925,-614.96626838,0.00027671,5]
[338228303,1726396248935,-500.0,0.00027671,5]
[338228304,1726396248944,-500.0,0.00027671,5]
[338228305,1726396248955,-500.0,0.00027671,5]
[338228306,1726396248968,-502.13,0.00027671,5]
[338228307,1726396248977,-500.0,0.00027671,5]
[338228308,1726396248987,-500.0,0.00027671,5]
[338228309,1726396248997,-1210.9,0.00027671,5]
[338228310,1726396249008,-500.0,0.00027671,5]
[338228311,1726396249019,-500.0,0.00027671,5]
[338228312,1726396249030,-564.09,0.00027671,5]
[338228313,1726396249040,-1513.66,0.00027671,5]
[338228314,1726396249052,-2199.65,0.00027671,5]
[338228315,1726396249063,-522.5451449,0.00027671,5]
[338228316,1726396249072,-500.0,0.00027671,5]
[338228317,1726396249082,-500.0,0.00027671,5]
[338228318,1726396249092,-513.86903556,0.00027671,5]
[338228319,1726396249102,-846.7,0.00027671,5]
[338228320,1726396249113,-500.0,0.00027671,5]
[338228321,1726396249124,-759.89,0.00027671,5]
[338228322,1726396249138,-500.0,0.00027671,5]
[338228323,1726396249148,-740.81,0.00027671,5]
[338228324,1726396249159,-500.0,0.00027671,5]
[338228325,1726396249168,-500.0,0.00027671,5]
[338228326,1726396249179,-500.0,0.00027671,5]
[338228327,1726396249188,-1170.51,0.00027671,5]
[338228328,1726396249197,-500.0,0.00027671,5]
[338228329,1726396249207,-813.29,0.00027671,5]
[338228330,1726396249216,-500.0,0.00027671,5]
[338228331,1726396249226,-508.31719822,0.00027671,5]
[338228332,1726396249235,-500.0,0.00027671,5]
[338228333,1726396249245,-500.0,0.00027671,120]
[338228334,1726396249254,-500.0,0.00027671,5]
[338228335,1726396249265,-689.62,0.00027671,5]
[338228336,1726396249275,-500.0,0.00027671,5]
[338228337,1726396249285,-500.0,0.00027671,5]
[338228338,1726396249295,-673.68,0.00027671,5]
[338228339,1726396249304,-2186.5,0.00027671,5]
[338228340,1726396249314,-500.0,0.00027671,5]
[338228341,1726396249324,-500.0,0.00027671,5]
[338228342,1726396249333,-500.0,0.00027671,5]
[338228343,1726396249343,-518.22635029,0.00027671,5]
[338228344,1726396249352,-500.0,0.00027671,5]
[338228345,1726396249362,-815.43,0.00027671,5]
[338228346,1726396249371,-500.0,0.00027671,5]
[338228347,1726396249382,-1130.08,0.00027671,5]
[338228348,1726396249392,-500.0,0.00027671,5]
[338228349,1726396249402,-500.0,0.00027671,5]
[338228350,1726396249411,-763.24,0.00027671,5]
[338228351,1726396249421,-500.0,0.00027671,5]
[338228352,1726396249432,-817.77,0.00027671,5]
[338228353,1726396249442,-500.0,0.00027671,5]
[338228354,1726396249451,-500.0,0.00027671,5]
[338228355,1726396249461,-500.0,0.00027671,5]
[338228356,1726396249471,-500.0,0.00027671,5]
[338228357,1726396249480,-500.0,0.00027671,5]
[338228358,1726396249490,-500.0,0.00027671,5]
[338228359,1726396249504,-500.0,0.00027671,5]
[338228360,1726396249514,-500.0,0.00027671,5]
[338228361,1726396249524,-1133.1,0.00027671,5]
[338228362,1726396249533,-911.09,0.00027671,5]
[338228363,1726396249543,-500.0,0.00027671,5]
[338228364,1726396249554,-1174.98,0.00027671,5]
[338228365,1726396249565,-500.0,0.00027671,5]
[338228366,1726396249578,-500.0,0.00027671,5]
[338228367,1726396249587,-500.0,0.00027671,5]
[338228368,1726396249597,-1105.61,0.00027671,5]
[338228369,1726396249607,-500.0,0.00027671,5]
[338228370,1726396249618,-500.0,0.00027671,5]
[338228371,1726396249628,-1175.02,0.00027671,5]
[338228372,1726396249638,-500.0,0.00027671,2]
[338228373,1726396249649,-500.0,0.00027671,5]
[338228374,1726396249659,-517.79,0.00027671,5]
[338228375,1726396249669,-934.1,0.00027671,5]
[338228376,1726396249681,-2849.34,0.00027671,5]
[338228377,1726396249693,-500.0,0.00027671,5]
[338228378,1726396249703,-500.0,0.00027671,5]
[338228379,1726396249715,-500.0,0.00027671,5]
[338228380,1726396249726,-500.0,0.00027671,5]
[338228381,1726396249736,-500.0,0.00027671,5]
[338228382,1726396249749,-708.16,0.00027671,5]
[338228383,1726396249762,-1659.66,0.00027671,5]
[338228384,1726396249771,-736.96,0.00027671,5]
[338228385,1726396249782,-1177.39,0.00027671,5]
[338228386,1726396249792,-500.86536195,0.00027671,5]
[338228387,1726396249804,-595.94,0.00027671,5]
[338228388,1726396249816,-500.0,0.00027671,5]
[338228389,1726396249828,-508.46,0.00027671,5]
[338228390,1726396249839,-661.69,0.00027671,5]
[338228391,1726396249851,-500.0,0.00027671,5]
[338228392,1726396249861,-500.0,0.00027671,5]
[338228393,1726396249873,-500.0,0.00027671,5]
[338228394,1726396249883,-511.57,0.00027671,5]
[338228395,1726396249894,-709.04,0.00027671,5]
[338228396,1726396249904,-1581.07,0.00027671,5]
[338228397,1726396249915,-500.0,0.00027671,5]
[338228398,1726396249927,-1487.68,0.00027671,2]
[338228399,1726396249937,-748.97,0.00027671,5]
[338228400,1726396249947,-500.0,0.00027671,5]
[338228401,1726396249957,-500.0,0.00027671,5]
[338228402,1726396249966,-1012.71,0.00027671,5]
[338228403,1726396249978,-500.0,0.00027671,5]
[338228404,1726396249989,-1938.91,0.00027671,5]
[338228405,1726396249999,-500.0,0.00027671,5]
[338228406,1726396250011,-500.0,0.00027671,5]
[338228407,1726396250021,-500.0,0.00027671,5]
[338228408,1726396250032,-500.0,0.00027671,5]
[338228409,1726396250042,-661.13,0.00027671,5]
[338228410,1726396250053,-2342.06,0.00027671,5]
[338228411,1726396250065,-500.0,0.00027671,5]
[338228412,1726396250076,-826.2,0.00027671,5]
[338228413,1726396250086,-524.61,0.00027671,5]
[338228414,1726396250098,-500.0,0.00027671,5]
[338228415,1726396250110,-1707.24,0.00027671,5]
[338228416,1726396250121,-500.0,0.00027671,5]
[338228417,1726396250130,-508.21681731,0.00027671,5]
[338228418,1726396250140,-500.0,0.00027671,5]
[338228419,1726396250150,-500.0,0.00027671,2]
[338228420,1726396250161,-500.0,0.00027671,5]
[338228421,1726396250173,-831.1,0.00027671,5]
[338228422,1726396250184,-1848.26,0.00027671,5]
[338228423,1726396250194,-501.57133353,0.00027671,5]
[338228424,1726396250204,-500.0,0.00027671,5]
[338228425,1726396250214,-500.0,0.00027671,5]
[338228426,1726396250224,-500.0,0.00027671,5]
[338228427,1726396250236,-500.0,0.00027671,5]
[338228428,1726396250247,-500.0,0.00027671,5]
[338228429,1726396250257,-500.0,0.00027671,5]
[338228430,1726396250269,-500.0,0.00027671,5]
[338228431,1726396250279,-500.0,0.00027671,5]
[338228432,1726396250289,-500.0,0.00027671,5]
[338228433,1726396250299,-500.0,0.00027671,5]
[338228434,1726396250308,-500.0,0.00027671,5]
[338228435,1726396250317,-500.0,0.00027671,5]
[338228436,1726396250326,-2220.17,0.00027671,5]
[338228437,1726396250334,-779.86,0.00027671,5]
[338228438,1726396250344,-500.0,0.00027671,5]
[338228439,1726396250354,-2431.33,0.00027671,5]
[338228440,1726396250363,-500.0,0.00027671,5]
[338228441,1726396250373,-1191.76,0.00027671,5]
[338228442,1726396250382,-500.0,0.00027671,5]
[338228443,1726396250391,-500.0,0.00027671,5]
[338228444,1726396250401,-500.0,0.00027671,5]
[338228445,1726396250410,-1771.5,0.00027671,5]
[338228446,1726396250421,-500.0,0.00027671,5]
[338228447,1726396250431,-500.0,0.00027671,5]
[338228448,1726396250441,-500.0,0.00027671,5]
[338228449,1726396250450,-250.24,0.00027671,5]
[338228450,1726396250459,-500.0,0.00027671,5]
[338228451,1726396250468,-500.0,0.00027671,5]
[338228452,1726396250477,-1171.86,0.00027671,5]
[338228453,1726396250487,-500.0,0.00027671,5]
[338228454,1726396250496,-3631.61,0.00027671,5]
[338228455,1726396250505,-1722.01,0.00027671,5]
[338228456,1726396250514,-500.0,0.00027671,5]
[338228457,1726396250523,-786.7,0.00027671,5]
[338228458,1726396250532,-505.67732505,0.00027671,5]
[338228459,1726396250542,-500.0,0.00027671,5]
[338228460,1726396250551,-500.0,0.00027671,5]
[338228461,1726396250560,-500.0,0.00027671,5]
[338228462,1726396250573,-500.0,0.00027671,5]
[338228463,1726396250583,-888.49,0.00027671,5]
[338228464,1726396250592,-520.14915755,0.00027671,5]
[338228465,1726396250602,-500.0,0.00027671,5]
[338228466,1726396250613,-797.3,0.00027671,5]
[338228467,1726396250623,-2350.04,0.00027671,5]
[338228468,1726396250634,-496.45654323,0.00027671,5]
[338228469,1726396250644,-3075.2,0.00027671,5]
[338228470,1726396250655,-500.0,0.00027671,5]
[338228471,1726396250665,-500.0,0.00027671,5]
[338228472,1726396250677,-513.70846095,0.00027671,5]
[338228473,1726396250687,-500.0,0.00027671,5]
[338228474,1726396250698,-573.28,0.00027671,5]
[338228475,1726396250709,-500.0,0.00027671,5]
[338228476,1726396250719,-1605.27,0.00027671,5]
[338228477,1726396250729,-2940.66,0.00027671,5]
[338228478,1726396250738,-500.0,0.00027671,5]
[338228479,1726396250748,-4274.35,0.00027671,5]
[338228480,1726396250758,-577.56,0.00027671,5]
[338228481,1726396250768,-500.0,0.00027671,5]
[338228482,1726396250777,-5168.75,0.00027671,5]
[338228483,1726396250788,-500.0,0.00027671,5]
[338228484,1726396250799,-801.38,0.00027671,5]
[338228485,1726396250810,-1028.15,0.00027671,5]
[338228486,1726396250820,-500.0,0.00027671,5]
[338228487,1726396250832,-500.0,0.00027671,5]
[338228488,1726396250842,-753.35,0.00027671,5]
[338228489,1726396250852,-722.99,0.00027671,5]
[338228490,1726396250863,-1803.43,0.00027671,5]
[338228491,1726396250874,-500.0,0.00027671,5]
[338228492,1726396250884,-500.0,0.00027671,5]
[338228493,1726396250897,-500.0,0.00027671,5]
[338228494,1726396250908,-1064.3,0.00027671,5]
[338228495,1726396250919,-500.0,0.00027671,5]
[338228496,1726396250932,-500.0,0.00027671,5]
[338228497,1726396250942,-500.0,0.00027671,5]
[338228498,1726396250952,-500.0,0.00027671,5]
[338228499,1726396250963,-502.66215827,0.00027671,5]
[338228500,1726396250973,-500.0,0.00027671,5]
[338228501,1726396250983,-500.0,0.00027671,5]
[338228502,1726396250992,-500.0,0.00027671,5]
[338228503,1726396251004,-500.0,0.00027671,5]
[338228504,1726396251015,-500.0,0.00027671,2]
[338228505,1726396251024,-728.68,0.00027671,5]
[338228506,1726396251034,-500.0,0.00027671,5]
[338228507,1726396251043,-18642.33,0.00027671,5]
[338228508,1726396251053,-3138.31,0.00027671,5]
[338228509,1726396251063,-998.43,0.00027671,5]
[338228510,1726396251073,-508.84472465,0.00027671,5]
[338228511,1726396251083,-500.0,0.00027671,5]
[338228512,1726396251094,-47563.08,0.00027671,5]
[338228513,1726396251104,-500.0,0.00027671,5]
[338228514,1726396251113,-500.0,0.00027671,5]
[338228515,1726396251122,-2271.27,0.00027671,5]
[338228516,1726396251132,-500.0,0.00027671,5]
[338228517,1726396251142,-500.0,0.00027671,5]
[338228518,1726396251151,-1935.75,0.00027671,5]
[338228519,1726396251161,-2734.03,0.00027671,5]
[338228520,1726396251173,-500.0,0.00027671,5]
[338228521,1726396251191,-1922.15,0.00027671,5]
[338228522,1726396251203,-500.0,0.00027671,5]
[338228523,1726396251214,-500.0,0.00027671,5]
[338228524,1726396251228,-1013.9,0.00027671,5]
[338228525,1726396251239,-5010.07,0.00027671,5]
[338228526,1726396251251,-880.44,0.00027671,5]
[338228527,1726396251263,-500.0,0.00027671,5]
[338228528,1726396251274,-748.98,0.00027671,5]
[338228529,1726396251286,-500.0,0.00027671,5]
[338228530,1726396251298,-500.0,0.00027671,5]
[338228531,1726396251308,-500.0,0.00027671,5]
[338228532,1726396251320,-547.49,0.00027671,5]
[338228533,1726396251331,-15923.36,0.00027671,5]
[338228534,1726396251344,-526.69,0.00027671,5]
[338228535,1726396251356,-500.0,0.00027671,5]
[338228536,1726396251366,-22323.34,0.00027671,5]
[338228537,1726396251378,-14512.63,0.00027671,5]
[338228538,1726396251388,-500.0,0.00027671,5]
[338228539,1726396251399,-1244.21,0.00027671,5]
[338228540,1726396251410,-500.0,0.00027671,5]
[338228541,1726396251423,-1454.83,0.00027671,5]
[338228542,1726396251433,-2466.41,0.00027671,5]
[338228543,1726396251444,-500.0,0.00027671,5]
[338228544,1726396251455,-500.0,0.00027671,5]
[338228545,1726396251466,-500.0,0.00027671,5]
[338228546,1726396251478,-1676.59,0.00027671,5]
[338228547,1726396251489,-1952.98,0.00027671,5]
[338228548,1726396251500,-500.0,0.00027671,5]
[338228549,1726396251513,-1283.59,0.00027671,5]
[338228550,1726396251524,-500.0,0.00027671,5]
[338228551,1726396251535,-1561.6,0.00027671,5]
[338228552,1726396251548,-1391.3,0.00027671,5]
[338228553,1726396251558,-500.0,0.00027671,5]
[338228554,1726396251570,-1283.43,0.00027671,5]
[338228555,1726396251581,-500.0,0.00027671,5]
[338228556,1726396251591,-500.0,0.00027671,5]
[338228557,1726396251603,-500.0,0.00027671,5]
[338228558,1726396251614,-2308.59,0.00027671,5]
[338228559,1726396251624,-7035.35,0.00027671,5]
[338228560,1726396251634,-514.88,0.00027671,5]
[338228561,1726396251646,-575.19,0.00027671,5]
[338228562,1726396251657,-2710.14,0.00027671,5]
[338228563,1726396251669,-500.0,0.00027671,5]
[338228564,1726396251683,-500.0,0.00027671,5]
[338228565,1726396251694,-2068.03,0.00027671,5]
[338228566,1726396251704,-659.31,0.00027671,2]
[338228567,1726396251714,-500.0,0.00027671,5]
[338228568,1726396251724,-4998.23,0.00027671,5]
[338228569,1726396251734,-6147.43,0.00027671,5]
[338228570,1726396251745,-710.75,0.00027671,5]
[338228571,1726396251756,-1153.35,0.00027671,5]
[338228572,1726396251766,-3691.68,0.00027671,5]
[338228573,1726396251776,-286.66509596,0.00027671,5]
[338228574,1726396251786,-1014.42,0.00027671,5]
[338228575,1726396251797,-500.0,0.00027671,5]
[338228576,1726396251806,-4346.16,0.00027671,5]
[338228577,1726396251816,-506.11079621,0.00027671,5]
[338228578,1726396251826,-3720.41,0.00027671,5]
[338228579,1726396251840,-829.56,0.00027671,5]
[338228580,1726396251850,-524.61,0.00027671,5]
[338228581,1726396251860,-500.0,0.00027671,5]
[338228582,1726396251870,-3311.09,0.00027671,5]
[338228583,1726396251880,-500.0,0.00027671,5]
[338228584,1726396251890,-3134.51,0.00027671,5]
[338228585,1726396251900,-500.0,0.00027671,5]
[338228586,1726396251909,-540.16,0.00027671,5]
[338228587,1726396251920,-763.1,0.00027671,5]
[338228588,1726396251937,-1809.02,0.00027671,5]
[338228589,1726396251948,-870.65,0.00027671,5]
[338228590,1726396251958,-2819.02,0.00027671,5]
[338228591,1726396251968,-2514.32,0.00027671,5]
[338228592,1726396251978,-522.85478774,0.00027671,5]
[338228593,1726396251989,-978.38,0.00027671,5]
[338228594,1726396252000,-574.49,0.00027671,5]
[338228595,1726396252010,-685.47,0.00027671,5]
[338228596,1726396252019,-500.0,0.00027671,5]
[338228597,1726396252030,-1564.77,0.00027671,5]
[338228598,1726396252039,-547.4,0.00027671,5]
[338228599,1726396252050,-500.0,0.00027671,5]
[338228600,1726396252060,-1008.25,0.00027671,5]
[338228601,1726396252070,-2871.38,0.00027671,5]
[338228602,1726396252080,-1651.26929654,0.00027671,5]
[338228603,1726396253060,-14615.710678,0.00027671,5]
[338228604,1726396253075,-441.82946798,0.00027671,5]
[338228605,1726396254858,-500.0,0.00027397,5]
[338228606,1726396254869,-500.0,0.00027397,5]
[338228607,1726396254879,-500.0,0.00027397,5]
[338228608,1726396254890,-10057.16055748,0.00027671,5]
[338228609,1726396254900,-1528.44,0.00027671,5]
[338228610,1726396254911,-1843.68,0.00027671,5]
[338228611,1726396254921,-500.0,0.00027671,5]
[338228612,1726396254931,-1855.02,0.00027671,5]
[338228613,1726396254941,-290.94660941,0.00027671,5]
[338228614,1726396254951,-500.0,0.00027671,5]
[338228615,1726396254961,-507.10522042,0.00027671,5]
[338228616,1726396254971,-500.0,0.00027671,5]
[338228617,1726396254981,-500.0,0.00027671,5]
[338228618,1726396254991,-500.0,0.00027671,5]
[338228619,1726396255002,-571.01,0.00027671,5]
[338228620,1726396255012,-4362.1,0.00027671,5]
[338228621,1726396255022,-500.0,0.00027671,5]
[338228622,1726396255032,-500.0,0.00027671,5]
[338228623,1726396255042,-500.0,0.00027671,5]
[338228624,1726396255051,-1777.79,0.00027671,5]
[338228625,1726396255061,-8373.99007769,0.00027671,5]
[338228626,1726396255403,-2038.417714,0.00027671,5]
[338228651,1726397350481,-253.57,0.00022,2]
[338228695,1726397437863,-163.336442,0.00024413,2]
[338228696,1726397437875,-300.0,0.00025192,2]
[338228697,1726397437886,-300.0,0.00025192,2]
[338228698,1726397437896,-24890.0,0.00025193,2]
[338228699,1726397437906,-3000.0,0.00025278,2]
[338228700,1726397437916,-250.0,0.00025331,2]
[338228701,1726397437927,-250.0,0.00025401,2]
[338228702,1726397437938,-250.0,0.0002547,2]
[338228703,1726397437948,-250.0,0.0002554,2]
[338228704,1726397437960,-250.0,0.00025609,2]
[338228705,1726397437969,-250.0,0.00025679,2]
[338228706,1726397437979,-250.0,0.00025748,2]
[338228707,1726397437990,-250.0,0.00025818,2]
[338228708,1726397438003,-250.0,0.00025887,2]
[338228709,1726397438014,-157.09926174,0.00025926,2]
[338228710,1726397438024,-250.0,0.00025957,2]
[338228711,1726397438035,-250.0,0.00026026,2]
[338228712,1726397438047,-250.0,0.00026096,2]
[338228713,1726397438056,-250.0,0.00026165,2]
[338228714,1726397438066,-250.0,0.00026234,2]
[338228715,1726397438075,-250.0,0.00026304,2]
[338228716,1726397438085,-250.0,0.00026373,2]
[338228717,1726397438094,-250.0,0.00026443,2]
[338228718,1726397438103,-250.0,0.00026512,2]
[338228719,1726397438113,-250.0,0.00026582,2]
[338228720,1726397438122,-250.0,0.00026651,2]
[338228721,1726397438131,-1000.0,0.00027,120]
[338228722,1726397438198,-420.0,0.00027286,2]
[338228723,1726397438210,-1524.82741956,0.00027297,2]
[338228724,1726397438220,-2958.96307771,0.00027377,4]
[338228725,1726397438230,-7663.17018277,0.00027377,4]
[338228726,1726397438239,-1291.43,0.00027377,3]
[338228727,1726397438248,-1076.19,0.00027377,3]
[338228728,1726397438257,-2958.96307771,0.00027387,4]
[338228729,1726397438266,-7663.17018277,0.00027387,4]
[338228730,1726397438276,-53261.3353988,0.00027387,4]
[338228731,1726397438287,-187.16,0.00027387,16]
[338228732,1726397438297,-157.09926174,0.00027387,2]
[338228733,1726397438309,-500.0,0.00027396,2]
[338228734,1726397438321,-461.04550041,0.00027396,2]
[338228735,1726397438332,-182.68063783,0.00027396,2]
[338228736,1726397438343,-1376.84343259,0.00027397,5]
[338228737,1726397438353,-162.03703703,0.00027397,7]
[338228738,1726397438363,-502.42341447,0.00027397,5]
[338228739,1726397438374,-501.98198763,0.00027397,5]
[338228740,1726397438383,-500.0,0.00027397,5]
[338228741,1726397438394,-500.0,0.00027397,5]
[338228742,1726397438404,-500.0,0.00027397,5]
[338228743,1726397438414,-500.0,0.00027397,5]
[338228744,1726397438424,-500.0,0.00027397,5]
[338228745,1726397438436,-501.67795957,0.00027397,5]
[338228746,1726397438447,-747.47,0.00027397,5]
[338228747,1726397438458,-1109.99,0.00027397,5]
[338228748,1726397438468,-500.0,0.00027397,5]
[338228749,1726397438478,-500.0,0.00027397,5]
[338228750,1726397438490,-500.0,0.00027397,5]
[338228751,1726397438500,-500.0,0.00027397,5]
[338228752,1726397438513,-312.20770483,0.00027397,5]
[338228753,1726397438524,-696.56,0.00027397,5]
[338228754,1726397438534,-500.0,0.00027397,5]
[338228755,1726397438545,-1387.52,0.00027397,5]
[338228756,1726397438558,-557.76512627,0.00027397,5]
[338228757,1726397438569,-500.0,0.00027397,5]
[338228758,1726397438578,-500.0,0.00027397,5]
[338228759,1726397438588,-500.0,0.00027397,5]
[338228760,1726397438598,-500.0,0.00027397,5]
[338228761,1726397438609,-500.0,0.00027397,5]
[338228762,1726397438621,-735.43,0.00027397,5]
[338228763,1726397438633,-500.0,0.00027397,5]
[338228764,1726397438642,-501.29395002,0.00027397,5]
[338228765,1726397438653,-504.11422302,0.00027397,5]
[338228766,1726397438665,-500.0,0.00027397,5]
[338228767,1726397438675,-501.28378261,0.00027397,5]
[338228768,1726397438686,-749.62,0.00027397,5]
[338228769,1726397438697,-500.0,0.00027397,5]
[338228770,1726397438706,-500.0,0.00027397,5]
[338228771,1726397438716,-500.0,0.00027397,5]
[338228772,1726397438726,-500.0,0.00027397,5]
[338228773,1726397438736,-500.0,0.00027397,5]
[338228774,1726397438746,-500.0,0.00027397,5]
[338228775,1726397438757,-500.0,0.00027397,5]
[338228776,1726397438769,-2377.8,0.00027397,5]
[338228777,1726397438780,-546.36,0.00027397,5]
[338228778,1726397438791,-500.46989776,0.00027397,5]
[338228779,1726397438802,-502.1275904,0.00027397,2]
[338228780,1726397438813,-1013.48,0.00027397,5]
[338228781,1726397438824,-500.0,0.00027397,5]
[338228782,1726397438834,-500.0,0.00027397,5]
[338228783,1726397438844,-500.0,0.00027397,5]
[338228784,1726397438854,-508.54925446,0.00027397,5]
[338228785,1726397438863,-856.26,0.00027397,5]
[338228786,1726397438872,-500.0,0.00027397,5]
[338228787,1726397438882,-649.14,0.00027397,5]
[338228788,1726397438891,-981.15,0.00027397,5]
[338228789,1726397438901,-500.0,0.00027397,5]
[338228790,1726397438910,-500.0,0.00027397,5]
[338228791,1726397438919,-686.55,0.00027397,5]
[338228792,1726397438928,-1363.7,0.00027397,2]
[338228793,1726397438937,-500.0,0.00027397,5]
[338228794,1726397438946,-649.95,0.00027397,5]
[338228795,1726397438955,-500.0,0.00027397,5]
[338228796,1726397438964,-500.0,0.00027397,5]
[338228797,1726397438973,-500.0,0.00027397,5]
[338228798,1726397438983,-1585.8,0.00027397,5]
[338228799,1726397438992,-928.31,0.00027397,5]
[338228800,1726397439001,-500.0,0.00027397,5]
[338228801,1726397439011,-500.0,0.00027397,5]
[338228802,1726397439020,-500.0,0.00027397,5]
[338228803,1726397439030,-500.0,0.00027397,5]
[338228804,1726397439039,-500.0,0.00027397,5]
[338228805,1726397439049,-500.0,0.00027397,5]
[338228806,1726397439058,-500.0,0.00027397,5]
[338228807,1726397439067,-500.0,0.00027397,5]
[338228808,1726397439076,-502.71507777,0.00027397,2]
[338228809,1726397439085,-500.0,0.00027397,5]
[338228810,1726397439094,-500.0,0.00027397,5]
[338228811,1726397439103,-500.0,0.00027397,5]
[338228812,1726397439113,-500.0,0.00027397,5]
[338228813,1726397439123,-500.0,0.00027397,5]
[338228814,1726397439134,-500.0,0.00027397,5]
[338228815,1726397439144,-500.0,0.00027397,5]
[338228816,1726397439153,-500.0,0.00027397,5]
[338228817,1726397439163,-582.73580579,0.00027397,5]
[338228818,1726397439175,-500.0,0.00027397,5]
[338228819,1726397439185,-1074.2,0.00027397,5]
[338228820,1726397439195,-1092.44,0.00027397,5]
[338228821,1726397439207,-500.0,0.00027397,5]
[338228822,1726397439216,-500.0,0.00027397,5]
[338228823,1726397439228,-500.0,0.00027397,5]
[338228824,1726397439239,-500.0,0.00027397,5]
[338228825,1726397439252,-500.0,0.00027397,5]
[338228826,1726397439262,-500.0,0.00027397,5]
[338228827,1726397439273,-500.0,0.00027397,5]
[338228828,1726397439286,-500.0,0.00027397,5]
[338228829,1726397439298,-500.0,0.00027397,5]
[338228830,1726397439309,-2016.34,0.00027397,5]
[338228831,1726397439322,-500.0,0.00027397,5]
[338228832,1726397439331,-564.64138051,0.00027397,5]